fUSD/lending_fUSD_20250221
["ID","MTS","AMOUNT","RATE_DAILY","PERIOD"]
[353998671,1740177067871,-500.0,0.00013323,2]
[353998672,1740177067882,-551.93,0.00013332,2]
[353998673,1740177067891,-500.0,0.00013332,2]
[353998674,1740177067901,-500.0,0.00013332,2]
[353998675,1740177067910,-500.0,0.00013332,2]
[353998676,1740177067919,-230.24167019,0.00013332,2]
[353998677,1740177067928,-575.14,0.00013332,2]
[353998678,1740177067937,-150.0,0.00013342,2]
[353998679,1740177067946,-11677.0,0.00013342,2]
[353998680,1740177067956,-1169.0,0.00013342,2]
[353998681,1740177067965,-150.0,0.00013343,2]
[353998682,1740177067975,-150.0,0.00013346,2]
[353998683,1740177067984,-417.57,0.00013349,2]
[353998684,1740177067994,-500.0,0.00013349,2]
[353998685,1740177068005,-219.46893341,0.00013349,2]
[353998686,1740177068015,-1298.36,0.00013349,2]
[353998687,1740177068023,-1298.36,0.00013349,2]
[353998688,1740177068074,-174.84,0.00013349,2]
[353998689,1740177068083,-1000.0,0.00013349,2]
[353998690,1740177068093,-1000.0,0.00013349,2]
[353998691,1740177068102,-500.0,0.00013349,2]
[353998692,1740177068111,-500.0,0.00013349,2]
[353998693,1740177068121,-1030.4727467,0.0001335,2]
[353998694,1740177068130,-151.0,0.0001335,2]
[353998695,1740177068139,-151.0,0.0001335,2]
[353998696,1740177068149,-151.0,0.0001335,2]
[353998697,1740177068158,-153.729477,0.0001335,2]
[353998698,1740177068168,-151.0,0.0001335,2]
[353998699,1740177068176,-313088.45364115,0.0001335,2]
[353998700,1740177068350,-893.38400479,0.0001335,2]
[353998701,1740177068575,-500.0,0.00010958,2]
[353998702,1740177068585,-950.99,0.00011114,2]
[353998703,1740177068594,-500.0,0.00011123,2]
[353998704,1740177068603,-950.99,0.00011196,2]
[353998705,1740177068612,-500.0,0.00011205,2]
[353998706,1740177068621,-393.65150048,0.00011279,2]
[353998707,1740177068633,-358.32115727,0.00011279,2]
[353998708,1740177318184,993.36817735,0.00010958,120]
[353998717,1740177626266,1787.14,8.219e-05,2]
[353999191,1740178232343,-365.19994533,9.556e-05,2]
[353999192,1740178232355,-25334.80005467,9.556e-05,2]
[353999193,1740178232365,-1488.27,9.655e-05,2]
[353999194,1740178232375,-150.0,9.706e-05,2]
[353999195,1740178232384,-218.64235302,9.706e-05,2]
[353999196,1740178232393,-844.8948075,9.756e-05,2]
[353999197,1740178232405,-1255.1051925,9.756e-05,2]
[353999198,1740178232416,-1024.15,9.76e-05,2]
[353999199,1740178232426,-1244.77,9.765e-05,2]
[353999200,1740178232436,-150.0,9.793e-05,2]
[353999201,1740178232445,-500.0,9.798e-05,2]
[353999202,1740178232454,-1000.0,9.854e-05,2]
[353999203,1740178232464,-1868.89471943,9.961e-05,2]
[353999204,1740178232483,-131.10528057,9.961e-05,2]
[353999205,1740178232492,-150.0,0.00010055,2]
[353999206,1740178232501,-552.02232067,0.00010075,2]
[353999207,1740178232520,-947.97767933,0.00010075,2]
[353999208,1740178232528,-250.0,0.00010129,2]
[353999209,1740178232538,-162.68,0.00010132,2]
[353999210,1740178232546,-95.90899898,0.00010178,2]
[353999211,1740178232557,-124.33100102,0.00010178,2]
[353999212,1740178232566,-170.0,0.00010183,2]
[353999213,1740178232575,-150.0,0.00010237,2]
[353999214,1740178232583,-550.46899898,0.00010238,2]
[353999215,1740178232594,-3475.27042336,0.00010238,2]
[353999216,1740178232605,-295.44814184,0.00010238,2]
[353999217,1740178232616,-1388.60156239,0.00010238,2]
[353999218,1740178232627,-927.61514,0.00010238,2]
[353999219,1740178232638,-9152.19733159,0.00010238,2]
[353999220,1740178232662,-943.7974135,0.00010238,2]
[353999222,1740178232674,-7166.60098834,0.00010238,2]
[353999224,1740178232683,-2100.11,0.00010445,2]
[353999226,1740178232693,-1787.14,0.0001048,2]
[353999228,1740178232702,-150.0,0.00010621,2]
[353999231,1740178232711,-500.0,0.00010621,2]
[353999232,1740178232720,-700.0,0.00010852,2]
[353999234,1740178232729,-2100.0,0.00010852,2]
[353999236,1740178232737,-1620.1592,0.00010858,2]
[353999238,1740178232747,-2500.0,0.00010858,2]
[353999240,1740178232756,-300.0,0.000109,3]
[353999243,1740178232765,-769.6743,0.00010941,2]
[353999244,1740178232774,-5000.0,0.00010941,2]
[353999246,1740178232783,-500.0,0.00010958,2]
[353999248,1740178232792,-500.0,0.00010958,2]
[353999250,1740178232801,-500.0,0.00010958,2]
[353999251,1740178232810,-500.0,0.00010958,2]
[353999253,1740178232819,-500.0,0.00010958,2]
[353999255,1740178232828,-264.33853676,0.00010958,2]
[353999257,1740178232839,-245.50347947,0.00010958,2]
[353999259,1740178232849,-500.0,0.00010958,2]
[353999261,1740178232859,-513.19760024,0.00010958,2]
[353999263,1740178232867,-500.0,0.00010958,2]
[353999265,1740178232877,-500.0,0.00010958,2]
[353999267,1740178232886,-500.0,0.00010958,2]
[353999269,1740178232896,-508.1973333,0.00010958,2]
[353999271,1740178232905,-500.0,0.00010958,2]
[353999273,1740178232914,-500.0,0.00010958,2]
[353999275,1740178232923,-500.0,0.00010958,2]
[353999277,1740178232932,-500.0,0.00010958,2]
[353999279,1740178232941,-500.0,0.00010958,2]
[353999281,1740178232950,-500.0,0.00010958,2]
[353999283,1740178232959,-500.0,0.00010958,2]
[353999285,1740178232968,-500.0,0.00010958,2]
[353999287,1740178232977,-500.0,0.00010958,2]
[353999289,1740178232986,-500.0,0.00010958,2]
[353999291,1740178232996,-500.0,0.00010958,2]
[353999293,1740178233006,-504.42717946,0.00010958,2]
[353999295,1740178233015,-500.0,0.00010958,2]
[353999297,1740178233024,-500.0,0.00010958,2]
[353999299,1740178233033,-500.0,0.00010958,2]
[353999300,1740178233042,-500.0,0.00010958,2]
[353999302,1740178233051,-500.0,0.00010958,2]
[353999304,1740178233060,-500.0,0.00010958,2]
[353999306,1740178233069,-500.0,0.00010958,2]
[353999308,1740178233078,-500.0,0.00010958,2]
[353999310,1740178233087,-500.0,0.00010958,2]
[353999312,1740178233097,-508.44815269,0.00010958,2]
[353999314,1740178233106,-500.0,0.00010958,2]
[353999316,1740178233115,-500.0,0.00010958,2]
[353999318,1740178233124,-500.0,0.00010958,2]
[353999320,1740178233134,-500.0,0.00010958,2]
[353999322,1740178233143,-500.0,0.00010958,2]
[353999324,1740178233152,-500.0,0.00010958,2]
[353999326,1740178233161,-500.0,0.00010958,2]
[353999328,1740178233171,-500.0,0.00010958,2]
[353999330,1740178233180,-500.0,0.00010958,2]
[353999332,1740178233189,-500.0,0.00010958,2]
[353999334,1740178233199,-500.0,0.00010958,2]
[353999336,1740178233208,-500.0,0.00010958,2]
[353999338,1740178233217,-500.0,0.00010958,2]
[353999340,1740178233226,-500.0,0.00010958,2]
[353999342,1740178233236,-500.0,0.00010958,2]
[353999344,1740178233245,-500.0,0.00010958,2]
[353999346,1740178233254,-500.0,0.00010958,2]
[353999348,1740178233263,-500.0,0.00010958,2]
[353999350,1740178233272,-496.35886665,0.00010958,2]
[353999352,1740178233281,-508.89672768,0.00010958,2]
[353999353,1740178233290,-500.0,0.00010958,2]
[353999356,1740178233300,-500.0,0.00010958,2]
[353999357,1740178233309,-510.72982431,0.00010958,2]
[353999360,1740178233319,-500.0,0.00010958,2]
[353999362,1740178233328,-500.0,0.00010958,2]
[353999363,1740178233338,-500.0,0.00010958,2]
[353999365,1740178233347,-514.95461351,0.00010958,2]
[353999367,1740178233357,-500.0,0.00010958,2]
[353999369,1740178233367,-500.0,0.00010958,2]
[353999371,1740178233377,-500.0,0.00010958,2]
[353999373,1740178233386,-500.00208818,0.00010958,2]
[353999375,1740178233396,-500.0,0.00010958,2]
[353999377,1740178233406,-500.0,0.00010958,2]
[353999379,1740178233417,-500.0,0.00010958,2]
[353999381,1740178233427,-500.0,0.00010958,2]
[353999383,1740178233436,-500.0,0.00010958,2]
[353999385,1740178233445,-508.03430446,0.00010958,2]
[353999387,1740178233455,-500.0,0.00010958,2]
[353999389,1740178233465,-500.0,0.00010958,2]
[353999391,1740178233474,-500.0,0.00010958,2]
[353999393,1740178233483,-519.20928923,0.00010958,2]
[353999395,1740178233492,-502.85489018,0.00010958,2]
[353999397,1740178233502,-310.33405531,0.00010958,2]
[353999871,1740178238142,-277.06276182,0.00010958,2]
[353999874,1740178238152,-500.0,0.00010958,2]
[353999877,1740178238162,-500.0,0.00010958,2]
[353999880,1740178238172,-521.07117413,0.00010958,2]
[353999883,1740178238181,-500.0,0.00010958,2]
[353999886,1740178238191,-500.0,0.00010958,2]
[353999889,1740178238201,-413.78606353,0.00010958,2]
[353999893,1740178238214,-94.13862899,0.00010958,2]
[353999896,1740178238224,-500.0,0.00010958,2]
[353999898,1740178238238,-505.69470447,0.00010958,2]
[353999900,1740178238249,-500.0,0.00010958,2]
[353999902,1740178238260,-500.0,0.00010958,2]
[353999904,1740178238270,-500.0,0.00010958,2]
[353999906,1740178238280,-500.0,0.00010958,2]
[353999908,1740178238290,-500.0,0.00010958,2]
[353999910,1740178238300,-508.03299405,0.00010958,2]
[353999912,1740178238310,-500.0,0.00010958,2]
[353999914,1740178238320,-500.0,0.00010958,2]
[353999916,1740178238330,-512.63172999,0.00010958,2]
[353999918,1740178238339,-500.0,0.00010958,2]
[353999920,1740178238350,-500.0,0.00010958,2]
[353999922,1740178238360,-500.0,0.00010958,2]
[353999924,1740178238370,-500.0,0.00010958,2]
[353999953,1740178238641,-500.0,0.00010958,2]
[353999955,1740178238651,-500.0,0.00010958,2]
[353999957,1740178238661,-594.73714636,0.00010958,2]
[353999959,1740178238671,-1400.28,0.00010958,2]
[353999961,1740178238680,-512.26388753,0.00010958,2]
[353999963,1740178238690,-500.0,0.00010958,2]
[353999965,1740178238699,-500.0,0.00010958,2]
[353999967,1740178238709,-500.0,0.00010958,2]
[353999970,1740178238719,-515.8832663,0.00010958,2]
[353999972,1740178238729,-500.0,0.00010958,2]
[353999973,1740178238738,-500.0,0.00010958,2]
[353999975,1740178238747,-500.0,0.00010958,2]
[353999977,1740178238757,-500.0,0.00010958,2]
[353999979,1740178238766,-509.56297362,0.00010958,2]
[353999981,1740178238776,-500.0,0.00010958,2]
[353999983,1740178238785,-500.0,0.00010958,2]
[353999985,1740178238795,-500.0,0.00010958,2]
[353999987,1740178238804,-500.0,0.00010958,2]
[353999989,1740178238814,-500.0,0.00010958,2]
[353999992,1740178238823,-500.0,0.00010958,2]
[353999994,1740178238836,-500.0,0.00010958,2]
[353999996,1740178238846,-500.0,0.00010958,2]
[353999998,1740178238858,-510.63,0.00010958,2]
[354000000,1740178238867,-519.71851068,0.00010958,2]
[354000002,1740178238876,-500.0,0.00010958,2]
[354000004,1740178238886,-500.0,0.00010958,2]
[354000006,1740178238895,-500.0,0.00010958,2]
[354000008,1740178238905,-524.11,0.00010958,2]
[354000010,1740178238915,-225.64,0.00010958,2]
[354000012,1740178238925,-500.0,0.00010958,2]
[354000014,1740178238934,-500.0,0.00010958,2]
[354000016,1740178238944,-500.0,0.00010958,2]
[354000018,1740178238954,-500.0,0.00010958,2]
[354000020,1740178238963,-500.0,0.00010958,2]
[354000022,1740178238972,-175.25,0.00010958,2]
[354000024,1740178238983,-500.0,0.00010958,2]
[354000026,1740178238992,-500.0,0.00010958,2]
[354000028,1740178239002,-500.0,0.00010958,2]
[354000030,1740178239011,-500.0,0.00010958,2]
[354000032,1740178239020,-500.0,0.00010958,2]
[354000034,1740178239030,-500.0,0.00010958,2]
[354000036,1740178239039,-232.90112029,0.00010958,2]
[354000039,1740178239052,-267.09887971,0.00010958,2]
[354000041,1740178239062,-500.0,0.00010958,2]
[354000043,1740178239071,-621.75882296,0.00010958,2]
[354000045,1740178239080,-500.0,0.00010958,2]
[354000047,1740178239090,-505.19402938,0.00010958,2]
[354000049,1740178239099,-500.0,0.00010958,2]
[354000051,1740178239109,-500.0,0.00010958,2]
[354000053,1740178239118,-384.75407931,0.00010958,2]
[354000055,1740178239128,-500.0,0.00010958,2]
[354000057,1740178239137,-500.0,0.00010958,2]
[354000059,1740178239147,-500.0,0.00010958,2]
[354000061,1740178239156,-500.0,0.00010958,2]
[354000063,1740178239166,-500.0,0.00010958,2]
[354000065,1740178239176,-500.0,0.00010958,2]
[354000067,1740178239186,-500.0,0.00010958,2]
[354000069,1740178239195,-500.0,0.00010958,2]
[354000071,1740178239204,-500.0,0.00010958,2]
[354000073,1740178239214,-500.0,0.00010958,2]
[354000075,1740178239223,-500.0,0.00010958,2]
[354000077,1740178239232,-231.35565969,0.00010958,2]
[354000079,1740178239242,-500.0,0.00010958,2]
[354000081,1740178239252,-500.0,0.00010958,2]
[354000083,1740178239261,-258.09622942,0.00010958,2]
[354000085,1740178239270,-500.0,0.00010958,2]
[354000087,1740178239280,-514.44775957,0.00010958,2]
[354000089,1740178239289,-500.0,0.00010958,2]
[354000091,1740178239298,-500.0,0.00010958,2]
[354000093,1740178239308,-500.0,0.00010958,2]
[354000095,1740178239318,-500.0,0.00010958,2]
[354000096,1740178239327,-218.13093486,0.00010958,2]
[354000097,1740178239336,-414.84718913,0.00010958,2]
[354000098,1740178239346,-500.0,0.00010958,2]
[354000099,1740178239355,-342.57479167,0.00010958,2]
[354000100,1740178239364,-347.31,0.00010958,2]
[354000101,1740178239373,-500.0,0.00010958,2]
[354000102,1740178239382,-500.0,0.00010958,2]
[354000103,1740178239391,-500.0,0.00010958,2]
[354000104,1740178239400,-500.0,0.00010958,2]
[354000105,1740178239409,-209.13317664,0.00010958,2]
[354000107,1740178239423,-500.0,0.00010958,2]
[354000109,1740178239431,-500.0,0.00010958,2]
[354000110,1740178239440,-500.0,0.00010958,2]
[354000113,1740178239449,-500.0,0.00010958,2]
[354000115,1740178239459,-505.19244925,0.00010958,2]
[354000117,1740178239468,-500.0,0.00010958,2]
[354000118,1740178239477,-500.0,0.00010958,2]
[354000120,1740178239487,-552.80053991,0.00010958,2]
[354000123,1740178239499,-500.0,0.00010958,2]
[354000125,1740178239508,-500.0,0.00010958,2]
[354000127,1740178239518,-505.13056368,0.00010958,2]
[354000129,1740178239530,-500.0,0.00010958,2]
[354000131,1740178239540,-614.5067486,0.00010958,2]
[354000133,1740178239549,-500.0,0.00010958,2]
[354000135,1740178239559,-542.4083981,0.00010958,2]
[354000137,1740178239568,-500.0,0.00010958,2]
[354000139,1740178239578,-500.0,0.00010958,2]
[354000141,1740178239588,-500.0,0.00010958,2]
[354000143,1740178239598,-500.0,0.00010958,2]
[354000145,1740178239607,-894.32,0.00010958,2]
[354000147,1740178239617,-549.95,0.00010958,2]
[354000149,1740178239626,-500.0,0.00010958,2]
[354000151,1740178239637,-500.0,0.00010958,2]
[354000153,1740178239646,-500.0,0.00010958,2]
[354000155,1740178239655,-500.0,0.00010958,2]
[354000157,1740178239664,-151.07795441,0.00010958,2]
[354000158,1740178239673,-500.0,0.00010958,2]
[354000161,1740178239683,-500.0,0.00010958,2]
[354000163,1740178239692,-542.18102211,0.00010958,2]
[354000165,1740178239701,-500.0,0.00010958,2]
[354000167,1740178239711,-500.0,0.00010958,2]
[354000169,1740178239720,-500.0,0.00010958,2]
[354000171,1740178239729,-500.0,0.00010958,2]
[354000173,1740178239739,-500.0,0.00010958,2]
[354000175,1740178239748,-500.0,0.00010958,2]
[354000177,1740178239757,-500.0,0.00010958,2]
[354000179,1740178239766,-500.0,0.00010958,2]
[354000180,1740178239775,-500.0,0.00010958,2]
[354000182,1740178239785,-500.0,0.00010958,2]
[354000185,1740178239794,-500.0,0.00010958,2]
[354000187,1740178239804,-500.0,0.00010958,2]
[354000188,1740178239813,-500.0,0.00010958,2]
[354000190,1740178239822,-500.0,0.00010958,2]
[354000192,1740178239832,-500.0,0.00010958,2]
[354000195,1740178239842,-500.0,0.00010958,2]
[354000196,1740178239852,-534.60043578,0.00010958,2]
[354000198,1740178239861,-500.0,0.00010958,2]
[354000201,1740178239871,-500.0,0.00010958,2]
[354000203,1740178239880,-500.0,0.00010958,2]
[354000205,1740178239890,-500.0,0.00010958,2]
[354000206,1740178239899,-205.05166824,0.00010958,2]
[354000209,1740178239913,-437.22833176,0.00010958,2]
[354000211,1740178239922,-500.0,0.00010958,2]
[354000213,1740178239932,-505.96579421,0.00010958,2]
[354000215,1740178239941,-500.0,0.00010958,2]
[354000217,1740178239950,-500.0,0.00010958,2]
[354000219,1740178239959,-500.0,0.00010958,2]
[354000222,1740178239968,-500.0,0.00010958,2]
[354000225,1740178239978,-500.0,0.00010958,2]
[354000228,1740178239989,-500.0,0.00010958,2]
[354000231,1740178239998,-500.0,0.00010958,2]
[354000234,1740178240008,-500.0,0.00010958,2]
[354000236,1740178240019,-500.0,0.00010958,2]
[354000239,1740178240029,-180.32193683,0.00010958,2]
[354000242,1740178240038,-500.0,0.00010958,2]
[354000245,1740178240047,-500.0,0.00010958,2]
[354000248,1740178240057,-500.0,0.00010958,2]
[354000251,1740178240066,-285.26747849,0.00010958,2]
[354000254,1740178240075,-500.0,0.00010958,2]
[354000257,1740178240085,-500.0,0.00010958,2]
[354000260,1740178240094,-500.0,0.00010958,2]
[354000263,1740178240105,-500.0,0.00010958,2]
[354000266,1740178240114,-500.0,0.00010958,2]
[354000268,1740178240124,-613.67,0.00010958,2]
[354000270,1740178240134,-504.92652271,0.00010958,2]
[354000272,1740178240143,-500.0,0.00010958,2]
[354000274,1740178240152,-500.0,0.00010958,2]
[354000276,1740178240162,-530.13590107,0.00010958,2]
[354000277,1740178240172,-269.81297952,0.00010958,2]
[354000278,1740178240181,-500.0,0.00010958,2]
[354000279,1740178240191,-500.0,0.00010958,2]
[354000280,1740178240201,-500.0,0.00010958,2]
[354000281,1740178240211,-500.0,0.00010958,2]
[354000282,1740178240221,-500.0,0.00010958,2]
[354000284,1740178240231,-500.0,0.00010958,2]
[354000286,1740178240240,-500.0,0.00010958,2]
[354000288,1740178240249,-500.0,0.00010958,2]
[354000290,1740178240259,-500.0,0.00010958,2]
[354000292,1740178240268,-500.0,0.00010958,2]
[354000294,1740178240277,-500.0,0.00010958,2]
[354000296,1740178240287,-500.0,0.00010958,2]
[354000298,1740178240297,-500.0,0.00010958,2]
[354000300,1740178240306,-500.0,0.00010958,2]
[354000302,1740178240315,-500.0,0.00010958,2]
[354000304,1740178240324,-500.0,0.00010958,2]
[354000306,1740178240334,-500.0,0.00010958,2]
[354000308,1740178240343,-500.0,0.00010958,2]
[354000310,1740178240353,-500.0,0.00010958,2]
[354000312,1740178240362,-500.0,0.00010958,2]
[354000314,1740178240372,-500.0,0.00010958,2]
[354000316,1740178240382,-500.0,0.00010958,2]
[354000318,1740178240391,-500.0,0.00010958,2]
[354000320,1740178240401,-500.0,0.00010958,2]
[354000322,1740178240410,-500.0,0.00010958,2]
[354000324,1740178240421,-500.0,0.00010958,2]
[354000325,1740178240430,-500.0,0.00010958,2]
[354000327,1740178240440,-500.0,0.00010958,2]
[354000329,1740178240449,-500.0,0.00010958,2]
[354000331,1740178240459,-500.0,0.00010958,2]
[354000333,1740178240468,-500.0,0.00010958,2]
[354000335,1740178240477,-500.0,0.00010958,2]
[354000337,1740178240486,-500.0,0.00010958,2]
[354000339,1740178240496,-500.0,0.00010958,2]
[354000341,1740178240506,-429.8457302,0.00010958,2]
[354000345,1740178240533,-70.1542698,0.00010958,2]
[354000347,1740178240542,-500.0,0.00010958,2]
[354000349,1740178240553,-500.0,0.00010958,2]
[354000351,1740178240562,-500.0,0.00010958,2]
[354000353,1740178240571,-500.0,0.00010958,2]
[354000355,1740178240581,-500.0,0.00010958,2]
[354000357,1740178240590,-500.0,0.00010958,2]
[354000359,1740178240599,-500.0,0.00010958,2]
[354000361,1740178240608,-483.88280529,0.00010958,2]
[354000364,1740178240631,-16.11719471,0.00010958,2]
[354000366,1740178240641,-500.0,0.00010958,2]
[354000368,1740178240650,-500.0,0.00010958,2]
[354000370,1740178240659,-338.864685,0.00010958,2]
[354000372,1740178240668,-500.0,0.00010958,2]
[354000374,1740178240677,-500.0,0.00010958,2]
[354000376,1740178240686,-500.0,0.00010958,2]
[354000378,1740178240695,-500.0,0.00010958,2]
[354000380,1740178240704,-224.052028,0.00010958,2]
[354000383,1740178240715,-500.0,0.00010958,2]
[354000384,1740178240724,-500.0,0.00010958,2]
[354000386,1740178240733,-500.0,0.00010958,2]
[354000389,1740178240742,-500.0,0.00010958,2]
[354000390,1740178240751,-153.625135,0.00010958,2]
[354000393,1740178240760,-500.0,0.00010958,2]
[354000395,1740178240769,-500.0,0.00010958,2]
[354000396,1740178240779,-500.0,0.00010958,2]
[354000398,1740178240788,-500.0,0.00010958,2]
[354000400,1740178240797,-179.45059407,0.00010958,2]
[354000402,1740178240806,-22292.02794871,0.00010958,2]
[354000405,1740178240818,-48750.0,0.00010958,2]
[354000407,1740178240830,-310.24010705,0.00010958,2]
[354000409,1740178240841,-658.47843359,0.00010958,2]
[354000411,1740178240853,-2003.99448325,0.00010958,2]
[354000414,1740178240863,-433.49178807,0.00010958,2]
[354000474,1740178241324,-500.0,0.00010958,2]
[354000475,1740178241334,-500.0,0.00010958,2]
[354000476,1740178241343,-3836.65,0.00010958,2]
[354000558,1740178242195,-320.64382396,0.0001094,2]
[354000560,1740178242205,-500.0,0.00010958,2]
[354000562,1740178242214,-23374.50069715,0.00010958,2]
[354000564,1740178242224,-150.0,0.00010959,2]
[354000566,1740178242233,-210.31,0.0001101,2]
[354000568,1740178242243,-500.0,0.0001104,2]
[354000570,1740178242252,-500.0,0.0001104,2]
[354000572,1740178242261,-500.0,0.0001104,2]
[354000574,1740178242270,-500.0,0.0001104,2]
[354000576,1740178242279,-500.0,0.0001104,2]
[354000578,1740178242289,-500.0,0.0001104,2]
[354000580,1740178242298,-500.0,0.0001104,2]
[354000582,1740178242308,-500.0,0.0001104,2]
[354000584,1740178242320,-291.64742273,0.0001104,2]
[354000586,1740178242331,-500.0,0.0001104,2]
[354000588,1740178242341,-500.0,0.0001104,2]
[354000590,1740178242350,-500.0,0.0001104,2]
[354000592,1740178242360,-500.0,0.0001104,2]
[354000594,1740178242369,-500.0,0.0001104,2]
[354000596,1740178242378,-500.0,0.0001104,2]
[354000598,1740178242388,-500.0,0.0001104,2]
[354000600,1740178242397,-500.0,0.0001104,2]
[354000602,1740178242406,-500.0,0.0001104,2]
[354000603,1740178242417,-500.0,0.0001104,2]
[354000604,1740178242428,-500.0,0.0001104,2]
[354000605,1740178242439,-253.66198893,0.0001104,2]
[354000606,1740178242449,-376.25242313,0.0001104,2]
[354000607,1740178242460,-500.0,0.0001104,2]
[354000608,1740178242470,-500.0,0.0001104,2]
[354000609,1740178242479,-500.0,0.0001104,2]
[354000610,1740178242488,-500.0,0.0001104,2]
[354000611,1740178242499,-500.0,0.0001104,2]
[354000612,1740178242509,-500.0,0.0001104,2]
[354000613,1740178242518,-437.03946101,0.0001104,2]
[354000616,1740178242536,-62.96053899,0.0001104,2]
[354000618,1740178242545,-500.0,0.0001104,2]
[354000620,1740178242555,-500.0,0.0001104,2]
[354000622,1740178242564,-500.0,0.0001104,2]
[354000625,1740178242574,-500.0,0.0001104,2]
[354000628,1740178242583,-500.0,0.0001104,2]
[354000630,1740178242593,-500.0,0.0001104,2]
[354000632,1740178242602,-432.99429353,0.0001104,2]
[354000634,1740178242614,-75.56749118,0.0001104,2]
[354000636,1740178242624,-217.72332845,0.0001104,2]
[354000638,1740178242636,-282.27667155,0.0001104,2]
[354000641,1740178242646,-500.0,0.0001104,2]
[354000643,1740178242656,-176.03332845,0.0001104,2]
[354000736,1740178243321,-323.96667155,0.0001104,2]
[354000737,1740178243332,-500.0,0.0001104,2]
[354000738,1740178243341,-500.0,0.0001104,2]
[354000739,1740178243351,-500.0,0.0001104,2]
[354000740,1740178243360,-95.21332845,0.0001104,2]
[354000741,1740178243371,-404.78667155,0.0001104,2]
[354000742,1740178243381,-500.0,0.0001104,2]
[354000743,1740178243390,-5.0675143,0.0001104,2]
[354000744,1740178243402,-494.9324857,0.0001104,2]
[354000745,1740178243411,-500.0,0.0001104,2]
[354000746,1740178243423,-676.055762,0.0001104,2]
[354000747,1740178243433,-500.0,0.0001104,2]
[354000748,1740178243442,-500.0,0.0001104,2]
[354000749,1740178243452,-62.37858146,0.0001104,2]
[354000750,1740178243480,-437.62141854,0.0001104,2]
[354000751,1740178243489,-322.71090333,0.0001104,2]
[354000752,1740178243503,-177.28909667,0.0001104,2]
[354000753,1740178243513,-500.0,0.0001104,2]
[354000754,1740178243522,-500.0,0.0001104,2]
[354000755,1740178243531,-500.0,0.0001104,2]
[354000756,1740178243541,-347.92859103,0.0001104,2]
[354000757,1740178243552,-152.07140897,0.0001104,2]
[354000758,1740178243562,-500.0,0.0001104,2]
[354000759,1740178243571,-500.0,0.0001104,2]
[354000760,1740178243580,-500.0,0.0001104,2]
[354000761,1740178243590,-500.0,0.0001104,2]
[354000762,1740178243600,-500.0,0.0001104,2]
[354000763,1740178243609,-1153.14,0.0001104,2]
[354000764,1740178243619,-500.0,0.0001104,2]
[354000765,1740178243628,-423.28859103,0.0001104,2]
[354000766,1740178243640,-76.71140897,0.0001104,2]
[354000767,1740178243650,-500.0,0.0001104,2]
[354000768,1740178243659,-500.0,0.0001104,2]
[354000769,1740178243669,-500.0,0.0001104,2]
[354000770,1740178243679,-500.0,0.0001104,2]
[354000771,1740178243688,-500.0,0.0001104,2]
[354000772,1740178243697,-500.0,0.0001104,2]
[354000773,1740178243707,-500.0,0.0001104,2]
[354000784,1740178243912,-500.0,0.0001104,2]